[Event "7. Arber-Senioren-Cup 2019"]
[Site "Bodenmais"]
[Date "2019.07.27"]
[Round "1.8"]
[White "Zwetz, Anita"]
[Black "Herbold, Manfred"]
[Result "0-1"]
[ECO "A40"]
[WhiteElo "1828"]
[BlackElo "2081"]
[Annotator "NA RC"]
[PlyCount "108"]
[EventDate "2019.07.27"]
[EventType "swiss"]
[EventCountry "GER"]
[SourceTitle "playchess.com"]
[Source "ChessBase"]
[SourceQuality "1"]
[TimeControl "5400+30"]

1. d4 {[%emt 0:00:00]} g6 {[%emt 0:00:00]} 2. Nf3 {[%emt 0:00:00]} Bg7 {[%emt 0:00:00]} 3. Bg5 {[%emt 0:00:00]} c5 {[%emt 0:00:00]} 4. e3 {[%emt 0:00:00]} Qb6 {[%emt 0:00:00]} 5. Nc3 {[%emt 0:00:00]} Nf6 {[%emt 0:00:00]} 6. Bxf6 {[%emt 0:00:00]} Qxf6 {[%emt 0:00:00]} 7. Nd5 {[%emt 0:00:00]} Qd6 {[%emt 0:00:00]} 8. dxc5 {[%emt 0:00:00]} Qxc5 {[%emt 0:00:00]} 9. c3 {[%emt 0:00:00]} e6 {[%emt 0:00:00]} 10. Nf4 {[%emt 0:00:00]} d5 {[%emt 0:00:00]} 11. Be2 {[%emt 0:00:00]} Nd7 {[%emt 0:00:00]} 12. h4 {[%emt 0:00:00]} h6 {[%emt 0:00:00]} 13. Qc2 {[%emt 0:00:00]} e5 {[%emt 0:00:00]} 14. Nh3 {[%emt 0:00:00]} Nb6 {[%emt 0:00:00]} 15. Nd2 {[%emt 0:03:34]} Be6 {[%emt 0:00:00]} 16. Nb3 {[%emt 0:01:07]} Qc7 {[%emt 0:00:00]} 17. Bb5+ {[%emt 0:05:34]} Nd7 {[%emt 0:00:00]} 18. O-O-O {[%emt 0:02:53]} O-O-O {[%emt 0:00:00]} 19. f3 {[%emt 0:03:58]} a6 {[%emt 0:00:00]} 20. Be2 {[%emt 0:00:16]} Qb6 {[%emt 0:00:00]} 21. e4 {[%emt 0:04:31]} dxe4 {[%emt 0:00:35]} 22. fxe4 {[%emt 0:00:33]} Kb8 {[%emt 0:03:17]} 23. Bf3 {[%emt 0:02:42]} Rc8 {[%emt 0:03:38]} 24. Nf2 {[%emt 0:07:52]} h5 {[%emt 0:06:34]} 25. Kb1 {[%emt 0:01:07]} a5 {[%emt 0:00:50]} 26. Nd3 {[%emt 0:01:16]} Rc7 {[%emt 0:02:23]} 27. Ka1 {[%emt 0:02:24]} Rhc8 {[%emt 0:00:26]} 28. Rb1 {[%emt 0:01:49]} Bf8 {[%emt 0:01:04]} 29. Nd2 {[%emt 0:00:20]} Qa6 {[%emt 0:02:05]} 30. Rhd1 {[%emt 0:01:15]} a4 {[%emt 0:00:58]} 31. Be2 {[%emt 0:14:53]} Qa5 {[%emt 0:00:35]} 32. Rbc1 {[%emt 0:04:47]} f6 {[%emt 0:22:40]} 33. Rf1 {[%emt 0:00:24]} Be7 {[%emt 0:00:47]} 34. Nb1 {[%emt 0:01:46]} Nb6 {[%emt 0:00:34]} 35. Bd1 {[%emt 0:02:12]} Bb3 {[%emt 0:05:16]} 36. Qe2 {[%emt 0:00:20]} Bc4 {[%emt 0:00:15]} 37. Bc2 {[%emt 0:00:44]} Bb5 {[%emt 0:04:12]} 38. Rf3 {[%emt 0:03:44]} Nc4 {[%emt 0:01:02]} 39. Qe1 {[%emt 0:01:00]} Bc6 {[%emt 0:02:33]} 40. Nb4 {[%emt 0:01:06]} Qb6 {[%emt 0:00:50]} 41. b3 {[%emt 0:03:07]} Na5 {[%emt 0:03:28]} 42. Nxc6+ {[%emt 0:05:29]} Qxc6 {[%emt 0:03:01]} 43. bxa4 {[%emt 0:00:50]} Nc4 {[%emt 0:00:45]} 44. Bb3 {[%emt 0:00:24]} Nd6 {[%emt 0:00:26]} 45. Nd2 {[%emt 0:00:33]} f5 {[%emt 0:01:14]} 46. exf5 {[%emt 0:01:05]} e4 {[%emt 0:00:17]} 47. Re3 {[%emt 0:01:35]} gxf5 {[%emt 0:00:13]} 48. Qg3 {[%emt 0:01:51]} Qc5 {[%emt 0:02:11]} 49. Ree1 {[%emt 0:00:25]} Bf6 {[%emt 0:00:18]} 50. Nb1 {[%emt 0:00:21]} Be5 {[%emt 0:01:42]} 51. Qg5 {[%emt 0:00:41]} Qa5 {[%emt 0:01:53]} 52. Qd2 {[%emt 0:00:38]} Rxc3 {[%emt 0:00:38]} 53. Nxc3 {[%emt 0:01:46]} Rxc3 {[%emt 0:00:10]} 54. Kb1 {[%emt 0:00:48]} Rxb3+ {[%emt 0:00:08]} 0-1

[Event "7. Arber-Senioren-Cup 2019"]
[Site "Bodenmais"]
[Date "2019.07.27"]
[Round "1.9"]
[White "Kuempers, Ulrich"]
[Black "Meckel, Helmut"]
[Result "1-0"]
[ECO "A40"]
[WhiteElo "2030"]
[BlackElo "1804"]
[Annotator "NA RC"]
[PlyCount "53"]
[EventDate "2019.07.27"]
[EventType "swiss"]
[EventCountry "GER"]
[SourceTitle "playchess.com"]
[Source "ChessBase"]
[SourceQuality "1"]
[TimeControl "5400+30"]

1. d4 {[%emt 0:00:00]} e6 {[%emt 0:00:00]} 2. c4 {[%emt 0:00:00]} f5 {[%emt 0:00:00]} 3. Nf3 {[%emt 0:00:00]} Nf6 {[%emt 0:00:00]} 4. Nc3 {[%emt 0:00:00]} Be7 {[%emt 0:00:00]} 5. Bf4 {[%emt 0:00:00]} d6 {[%emt 0:00:00]} 6. e3 {[%emt 0:00:00]} O-O {[%emt 0:00:00]} 7. h3 {[%emt 0:00:00]} Qe8 {[%emt 0:00:00]} 8. Bd3 {[%emt 0:00:00]} Qh5 {[%emt 0:00:00]} 9. Qe2 {[%emt 0:00:00]} Bd7 {[%emt 0:00:00]} 10. O-O-O {[%emt 0:00:00]} Bc6 {[%emt 0:00:00]} 11. d5 {[%emt 0:00:00]} exd5 {[%emt 0:00:00]} 12. cxd5 {[%emt 0:00:00]} Bd7 {[%emt 0:00:00]} 13. g4 {[%emt 0:00:00]} Qf7 {[%emt 0:00:00]} 14. Ng5 {[%emt 0:00:00]} Qg6 {[%emt 0:00:00]} 15. Rdg1 {[%emt 0:00:00]} Ne8 {[%emt 0:00:00]} 16. gxf5 {[%emt 0:00:00]} Bxf5 {[%emt 0:00:00]} 17. e4 {[%emt 0:00:00]} Bd7 {[%emt 0:01:42]} 18. Be3 {[%emt 0:18:47]} Bxg5 {[%emt 0:08:10]} 19. Rxg5 {[%emt 0:00:29]} Qf6 {[%emt 0:02:35]} 20. f4 {[%emt 0:04:07]} h6 {[%emt 0:00:46]} 21. e5 {[%emt 0:11:10]} dxe5 {[%emt 0:01:13]} 22. Rg6 {[%emt 0:01:35]} Qe7 {[%emt 0:05:32]} 23. Qh5 {[%emt 0:09:05]} exf4 {[%emt 0:16:01]} 24. Bd4 {[%emt 0:01:06]} Qf7 {[%emt 0:00:29]} 25. Qxh6 {[%emt 0:07:56]} Bf5 {[%emt 0:00:30]} 26. Bxf5 {[%emt 0:00:18]} Qxf5 {[%emt 0:00:16]} 27. Rxg7+ {[%emt 0:00:14]} 1-0

[Event "7. Arber-Senioren-Cup 2019"]
[Site "Bodenmais"]
[Date "2019.07.27"]
[Round "1.10"]
[White "Boldt, Heinrich"]
[Black "Korte, Markus"]
[Result "1/2-1/2"]
[ECO "D02"]
[WhiteElo "1803"]
[BlackElo "2028"]
[Annotator "NA RC"]
[PlyCount "90"]
[EventDate "2019.07.27"]
[EventType "swiss"]
[EventCountry "GER"]
[SourceTitle "playchess.com"]
[Source "ChessBase"]
[SourceQuality "1"]
[TimeControl "5400+30"]

1. d4 {[%emt 0:00:00]} d5 {[%emt 0:00:00]} 2. Bf4 {[%emt 0:00:00]} Nf6 {[%emt 0:00:00]} 3. Nf3 {[%emt 0:00:00]} Bf5 {[%emt 0:00:00]} 4. e3 {[%emt 0:00:00]} e6 {[%emt 0:00:00]} 5. Bd3 {[%emt 0:00:00]} Ne4 {[%emt 0:00:00]} 6. O-O {[%emt 0:00:00]} Nd7 {[%emt 0:00:00]} 7. Ne5 {[%emt 0:00:00]} Be7 {[%emt 0:00:00]} 8. f3 {[%emt 0:00:00]} Nd6 {[%emt 0:00:00]} 9. Bxf5 {[%emt 0:00:00]} exf5 {[%emt 0:00:00]} 10. Nc3 {[%emt 0:00:00]} c6 {[%emt 0:00:00]} 11. Qd3 {[%emt 0:00:00]} O-O {[%emt 0:00:00]} 12. Nxd7 {[%emt 0:00:00]} Qxd7 {[%emt 0:00:00]} 13. Rae1 {[%emt 0:00:00]} Nc4 {[%emt 0:00:00]} 14. Nd1 {[%emt 0:00:00]} Bd6 {[%emt 0:01:07]} 15. b3 {[%emt 0:03:32]} Bxf4 {[%emt 0:08:36]} 16. exf4 {[%emt 0:06:51]} Nd6 {[%emt 0:01:42]} 17. Re3 {[%emt 0:04:35]} Rfe8 {[%emt 0:04:59]} 18. Rfe1 {[%emt 0:00:25]} Rxe3 {[%emt 0:00:19]} 19. Rxe3 {[%emt 0:00:55]} Re8 {[%emt 0:04:41]} 20. Qe2 {[%emt 0:00:52]} Kf8 {[%emt 0:06:00]} 21. Rxe8+ {[%emt 0:01:00]} Nxe8 {[%emt 0:02:24]} 22. Qe5 {[%emt 0:05:14]} Nd6 {[%emt 0:07:08]} 23. Kf2 {[%emt 0:06:41]} b6 {[%emt 0:06:40]} 24. a4 {[%emt 0:05:29]} f6 {[%emt 0:06:08]} 25. Qe2 {[%emt 0:07:42]} Kf7 {[%emt 0:08:18]} 26. Qd3 {[%emt 0:01:47]} g6 {[%emt 0:01:26]} 27. Nc3 {[%emt 0:03:51]} Ne8 {[%emt 0:01:46]} 28. g3 {[%emt 0:01:56]} Nc7 {[%emt 0:00:34]} 29. Na2 {[%emt 0:13:23]} Qd6 {[%emt 0:03:09]} 30. Qc3 {[%emt 0:08:07]} c5 {[%emt 0:02:23]} 31. Nc1 {[%emt 0:06:48]} Ne6 {[%emt 0:03:41]} 32. dxc5 {[%emt 0:02:53]} bxc5 {[%emt 0:00:18]} 33. Nd3 {[%emt 0:00:48]} Qb6 {[%emt 0:04:46]} 34. Kg2 {[%emt 0:02:29]} Kg7 {[%emt 0:07:02]} 35. h4 {[%emt 0:00:46]} Qc7 {[%emt 0:06:13]} 36. Kf2 {[%emt 0:02:38]} Qe7 {[%emt 0:04:24]} 37. Qe1 {[%emt 0:03:22]} c4 {[%emt 0:03:33]} 38. bxc4 {[%emt 0:04:18]} dxc4 {[%emt 0:00:14]} 39. Qb4 {[%emt 0:00:28]} Qc7 {[%emt 0:01:08]} 40. Nb2 {[%emt 0:01:04]} Qd7 {[%emt 0:03:00]} 41. Qxc4 {[%emt 0:04:19]} Qd2+ {[%emt 0:00:52]} 42. Qe2 {[%emt 0:02:59]} Qd4+ {[%emt 0:00:53]} 43. Kf1 {[%emt 0:00:56]} Qxb2 {[%emt 0:01:01]} 44. Qxe6 {[%emt 0:00:14]} Qa1+ 45. Qe1 Qxa4 1/2-1/2

[Event "7. Arber-Senioren-Cup 2019"]
[Site "Bodenmais"]
[Date "2019.07.27"]
[Round "1.11"]
[White "Augustin, Christian"]
[Black "Schuster, Herbert"]
[Result "1-0"]
[ECO "D02"]
[WhiteElo "1971"]
[BlackElo "1774"]
[Annotator "NA RC"]
[PlyCount "65"]
[EventDate "2019.07.27"]
[EventType "swiss"]
[EventCountry "GER"]
[SourceTitle "playchess.com"]
[Source "ChessBase"]
[SourceQuality "1"]
[TimeControl "5400+30"]

1. d4 {[%emt 0:00:00]} d5 {[%emt 0:00:00]} 2. Nf3 {[%emt 0:00:00]} Bf5 {[%emt 0:00:00]} 3. e3 {[%emt 0:00:00]} e6 {[%emt 0:00:00]} 4. c4 {[%emt 0:00:00]} Bb4+ {[%emt 0:00:00]} 5. Nc3 {[%emt 0:00:00]} c6 {[%emt 0:00:00]} 6. cxd5 {[%emt 0:00:00]} Bxc3+ {[%emt 0:00:00]} 7. bxc3 {[%emt 0:00:00]} exd5 {[%emt 0:00:00]} 8. Bd3 {[%emt 0:00:00]} Bxd3 {[%emt 0:00:00]} 9. Qxd3 {[%emt 0:00:00]} Nd7 {[%emt 0:00:00]} 10. O-O {[%emt 0:00:00]} Ne7 {[%emt 0:00:00]} 11. Rb1 {[%emt 0:00:00]} b5 {[%emt 0:00:00]} 12. e4 {[%emt 0:00:00]} Nf6 {[%emt 0:00:00]} 13. exd5 {[%emt 0:00:00]} Qxd5 {[%emt 0:00:00]} 14. Re1 {[%emt 0:00:00]} Qd8 {[%emt 0:00:00]} 15. Ba3 {[%emt 0:00:00]} Nfd5 {[%emt 0:00:00]} 16. Qe4 {[%emt 0:00:00]} Kf8 {[%emt 0:00:00]} 17. Rb2 {[%emt 0:06:20]} b4 {[%emt 0:00:00]} 18. Bxb4 {[%emt 0:02:26]} Nxb4 {[%emt 0:00:00]} 19. Rxb4 {[%emt 0:00:08]} Qc7 {[%emt 0:00:00]} 20. Reb1 {[%emt 0:04:51]} f6 {[%emt 0:00:00]} 21. Rb7 {[%emt 0:01:44]} Qd6 {[%emt 0:00:00]} 22. c4 {[%emt 0:05:49]} Re8 {[%emt 0:00:00]} 23. Re1 {[%emt 0:00:41]} c5 {[%emt 0:00:00]} 24. d5 {[%emt 0:01:29]} g6 {[%emt 0:00:00]} 25. Qe6 {[%emt 0:01:37]} Qxe6 {[%emt 0:00:00]} 26. Rxe6 {[%emt 0:00:08]} Ng8 {[%emt 0:00:00]} 27. Rxe8+ {[%emt 0:01:53]} Kxe8 {[%emt 0:00:00]} 28. Rxa7 {[%emt 0:00:20]} Kd8 {[%emt 0:00:00]} 29. d6 {[%emt 0:00:33]} Kc8 {[%emt 0:00:35]} 30. d7+ {[%emt 0:01:11]} Kd8 {[%emt 0:00:26]} 31. Nd2 {[%emt 0:00:20]} Ke7 {[%emt 0:01:10]} 32. Ne4 {[%emt 0:00:32]} f5 {[%emt 0:02:17]} 33. Nxc5 {[%emt 0:00:34]} 1-0

[Event "7. Arber-Senioren-Cup 2019"]
[Site "Bodenmais"]
[Date "2019.07.27"]
[Round "1.12"]
[White "Kirschner, Torsten"]
[Black "Benischek, Wolfgang"]
[Result "1-0"]
[ECO "E01"]
[WhiteElo "1767"]
[BlackElo "2022"]
[Annotator "NA RC"]
[PlyCount "99"]
[EventDate "2019.07.27"]
[EventType "swiss"]
[EventCountry "GER"]
[SourceTitle "playchess.com"]
[Source "ChessBase"]
[SourceQuality "1"]
[TimeControl "5400+30"]

1. d4 {[%emt 0:00:00]} d5 {[%emt 0:00:00]} 2. c4 {[%emt 0:00:00]} e6 {[%emt 0:00:00]} 3. g3 {[%emt 0:00:00]} Nf6 {[%emt 0:00:00]} 4. Bg2 {[%emt 0:00:00]} b6 {[%emt 0:00:00]} 5. Nf3 {[%emt 0:00:00]} Nbd7 {[%emt 0:00:00]} 6. O-O {[%emt 0:00:00]} Bb7 {[%emt 0:00:00]} 7. Nc3 {[%emt 0:00:00]} Be7 {[%emt 0:00:00]} 8. Bf4 {[%emt 0:00:00]} Nh5 {[%emt 0:00:00]} 9. Bd2 {[%emt 0:00:00]} O-O {[%emt 0:00:00]} 10. cxd5 {[%emt 0:00:00]} exd5 {[%emt 0:00:00]} 11. Re1 {[%emt 0:00:00]} Nhf6 {[%emt 0:00:00]} 12. Qc2 {[%emt 0:00:00]} c5 {[%emt 0:00:00]} 13. Rad1 {[%emt 0:00:00]} Rc8 {[%emt 0:00:00]} 14. Qf5 {[%emt 0:00:00]} g6 {[%emt 0:00:00]} 15. Qb1 {[%emt 0:00:00]} Re8 {[%emt 0:00:00]} 16. Bf4 {[%emt 0:00:00]} Nh5 {[%emt 0:00:00]} 17. Bh6 {[%emt 0:10:54]} Bf6 {[%emt 0:03:50]} 18. g4 {[%emt 0:07:43]} Bg7 {[%emt 0:09:21]} 19. Bxg7 {[%emt 0:07:38]} Nxg7 {[%emt 0:01:07]} 20. dxc5 {[%emt 0:01:23]} Nxc5 {[%emt 0:00:33]} 21. Nb5 {[%emt 0:03:03]} Qd7 {[%emt 0:01:32]} 22. Nc3 {[%emt 0:04:46]} Qxg4 {[%emt 0:02:55]} 23. Nxd5 {[%emt 0:01:16]} Bxd5 {[%emt 0:07:47]} 24. Rxd5 {[%emt 0:00:17]} Nce6 {[%emt 0:03:18]} 25. Ne5 {[%emt 0:08:34]} Qh4 {[%emt 0:07:36]} 26. Nf3 {[%emt 0:08:03]} Qc4 {[%emt 0:03:50]} 27. Ne5 {[%emt 0:01:06]} Qc2 {[%emt 0:02:59]} 28. e3 {[%emt 0:03:31]} Nh5 29. Rd7 {[%emt 0:00:45]} Qxb1 {[%emt 0:06:18]} 30. Rxb1 {[%emt 0:00:25]} Nc5 {[%emt 0:00:22]} 31. Rxf7 {[%emt 0:08:39]} Rxe5 {[%emt 0:00:45]} 32. Rxa7 {[%emt 0:00:28]} Nd3 {[%emt 0:03:21]} 33. Rd7 {[%emt 0:00:55]} Rc1+ 34. Rxc1 {[%emt 0:00:39]} Nxc1 {[%emt 0:02:15]} 35. b4 {[%emt 0:01:56]} Ne2+ {[%emt 0:02:52]} 36. Kf1 {[%emt 0:00:16]} Nc3 {[%emt 0:00:22]} 37. Rd3 {[%emt 0:00:50]} Na4 {[%emt 0:02:24]} 38. Bd5+ {[%emt 0:00:48]} Kg7 {[%emt 0:00:27]} 39. Bb3 {[%emt 0:00:19]} b5 {[%emt 0:00:35]} 40. Rd7+ {[%emt 0:00:36]} Kh6 {[%emt 0:01:03]} 41. Ke2 {[%emt 0:00:18]} Nf6 {[%emt 0:02:26]} 42. Rb7 {[%emt 0:01:16]} Nd5 {[%emt 0:05:20]} 43. Kd2 {[%emt 0:02:08]} Nf6 {[%emt 0:07:54]} 44. h3 {[%emt 0:02:42]} Ne4+ {[%emt 0:02:43]} 45. Ke2 {[%emt 0:01:44]} Rf5 {[%emt 0:02:09]} 46. f4 {[%emt 0:01:41]} g5 {[%emt 0:04:37]} 47. Bc2 {[%emt 0:01:04]} Nac3+ {[%emt 0:02:47]} 48. Kf3 {[%emt 0:01:03]} Nd2+ {[%emt 0:00:07]} 49. Kg4 {[%emt 0:00:29]} Nde4 {[%emt 0:02:29]} 50. Rb6+ {[%emt 0:03:39]} 1-0

[Event "7. Arber-Senioren-Cup 2019"]
[Site "Bodenmais"]
[Date "2019.07.27"]
[Round "1.13"]
[White "Greul, Hans"]
[Black "Riha, Peter"]
[Result "1/2-1/2"]
[ECO "A47"]
[WhiteElo "2009"]
[BlackElo "1720"]
[Annotator "NA RC"]
[PlyCount "172"]
[EventDate "2019.07.27"]
[EventType "swiss"]
[EventCountry "GER"]
[SourceTitle "playchess.com"]
[Source "ChessBase"]
[SourceQuality "1"]
[TimeControl "5400+30"]

1. d4 {[%emt 0:00:00]} Nf6 {[%emt 0:00:00]} 2. Nf3 {[%emt 0:00:00]} b6 {[%emt 0:00:00]} 3. e3 {[%emt 0:00:00]} Bb7 {[%emt 0:00:00]} 4. Be2 {[%emt 0:00:00]} e6 {[%emt 0:00:00]} 5. O-O {[%emt 0:00:00]} c5 {[%emt 0:00:00]} 6. c4 {[%emt 0:00:00]} Be7 {[%emt 0:00:00]} 7. Nc3 {[%emt 0:00:00]} Ne4 {[%emt 0:00:00]} 8. Nxe4 {[%emt 0:00:00]} Bxe4 {[%emt 0:00:00]} 9. b3 {[%emt 0:00:00]} O-O {[%emt 0:00:00]} 10. Bb2 {[%emt 0:00:00]} Bf6 {[%emt 0:00:00]} 11. Qd2 {[%emt 0:00:00]} d6 {[%emt 0:00:00]} 12. Rfd1 {[%emt 0:00:00]} Qe7 {[%emt 0:00:00]} 13. Ne1 {[%emt 0:00:00]} Bb7 {[%emt 0:00:44]} 14. Rab1 {[%emt 0:00:00]} Rd8 {[%emt 0:04:43]} 15. dxc5 {[%emt 0:00:00]} bxc5 {[%emt 0:01:12]} 16. b4 {[%emt 0:00:00]} Bxb2 {[%emt 0:03:50]} 17. Rxb2 {[%emt 0:00:00]} Na6 {[%emt 0:02:34]} 18. b5 {[%emt 0:00:00]} Nc7 {[%emt 0:00:13]} 19. b6 {[%emt 0:06:45]} axb6 {[%emt 0:08:54]} 20. Rxb6 {[%emt 0:00:13]} Ne8 {[%emt 0:00:21]} 21. Rdb1 {[%emt 0:04:47]} Be4 {[%emt 0:04:14]} 22. R1b2 {[%emt 0:02:48]} Qc7 {[%emt 0:04:13]} 23. R6b3 {[%emt 0:05:29]} Rdb8 {[%emt 0:02:56]} 24. Rxb8 {[%emt 0:05:12]} Rxb8 {[%emt 0:00:07]} 25. Rxb8 {[%emt 0:00:07]} Qxb8 26. a4 Kf8 {[%emt 0:06:50]} 27. f3 {[%emt 0:05:34]} Bc6 {[%emt 0:03:21]} 28. Bd1 {[%emt 0:01:28]} Qa7 {[%emt 0:04:04]} 29. Qc2 {[%emt 0:03:28]} g6 {[%emt 0:03:53]} 30. Nd3 {[%emt 0:02:22]} Ke7 {[%emt 0:04:57]} 31. h4 {[%emt 0:03:25]} Nc7 {[%emt 0:01:56]} 32. Qc3 {[%emt 0:03:40]} Qb8 {[%emt 0:04:18]} 33. Bc2 {[%emt 0:01:55]} Na6 {[%emt 0:02:50]} 34. h5 {[%emt 0:05:46]} Nb4 {[%emt 0:01:04]} 35. hxg6 {[%emt 0:01:24]} hxg6 {[%emt 0:00:12]} 36. Nxb4 {[%emt 0:06:52]} Qxb4 {[%emt 0:00:23]} 37. Qxb4 {[%emt 0:02:02]} cxb4 {[%emt 0:00:07]} 38. Kf2 {[%emt 0:00:08]} Kd7 {[%emt 0:00:14]} 39. Ke2 {[%emt 0:03:27]} Kc7 {[%emt 0:00:13]} 40. a5 {[%emt 0:01:56]} Kb7 41. Bd3 Ka6 {[%emt 0:06:21]} 42. c5+ {[%emt 0:00:33]} Kxa5 {[%emt 0:00:12]} 43. cxd6 {[%emt 0:00:17]} Kb6 {[%emt 0:01:21]} 44. e4 {[%emt 0:01:34]} e5 {[%emt 0:01:21]} 45. Bc4 {[%emt 0:02:08]} Be8 {[%emt 0:05:28]} 46. Bb3 {[%emt 0:02:36]} Kc5 {[%emt 0:02:14]} 47. Bxf7 {[%emt 0:01:42]} Bb5+ {[%emt 0:00:44]} 48. Kd2 {[%emt 0:04:23]} g5 {[%emt 0:00:49]} 49. Kc2 {[%emt 0:02:03]} Kxd6 50. Kd2 {[%emt 0:03:28]} Kc5 {[%emt 0:03:35]} 51. g3 {[%emt 0:00:25]} Bc4 {[%emt 0:01:10]} 52. Be8 {[%emt 0:01:50]} Kd4 {[%emt 0:00:56]} 53. Ba4 {[%emt 0:00:36]} Ba2 {[%emt 0:01:56]} 54. Kc2 {[%emt 0:01:40]} Ke3 {[%emt 0:00:53]} 55. Kb2 {[%emt 0:00:08]} b3 {[%emt 0:00:48]} 56. f4 {[%emt 0:01:16]} Kxe4 {[%emt 0:02:07]} 57. Bc6+ {[%emt 0:01:46]} Kf5 {[%emt 0:00:54]} 58. Bd7+ {[%emt 0:00:17]} Kf6 {[%emt 0:00:41]} 59. f5 {[%emt 0:04:09]} g4 {[%emt 0:00:45]} 60. Be6 {[%emt 0:00:52]} e4 {[%emt 0:01:01]} 61. Kc3 {[%emt 0:01:48]} Ke5 {[%emt 0:03:42]} 62. Kd2 {[%emt 0:01:03]} Kf6 {[%emt 0:01:32]} 63. Ke3 {[%emt 0:00:19]} Kg5 64. Kd4 {[%emt 0:01:08]} Bb1 {[%emt 0:02:23]} 65. Bxb3 {[%emt 0:00:25]} Kxf5 {[%emt 0:00:10]} 66. Ba4 {[%emt 0:00:44]} Bd3 {[%emt 0:02:12]} 67. Bd7+ {[%emt 0:00:25]} Kg5 68. Ke3 {[%emt 0:00:14]} Bb1 {[%emt 0:00:57]} 69. Bb5 {[%emt 0:01:12]} Bc2 {[%emt 0:00:54]} 70. Be2 {[%emt 0:00:14]} Bb1 {[%emt 0:00:38]} 71. Kd2 {[%emt 0:00:25]} Kf5 {[%emt 0:01:02]} 72. Bc4 {[%emt 0:00:59]} Kg5 {[%emt 0:00:43]} 73. Kc1 {[%emt 0:01:20]} Bd3 {[%emt 0:00:29]} 74. Bxd3 {[%emt 0:00:07]} exd3 {[%emt 0:00:05]} 75. Kd2 {[%emt 0:00:02]} Kf5 {[%emt 0:02:09]} 76. Kxd3 {[%emt 0:00:04]} Ke5 {[%emt 0:00:15]} 77. Ke3 {[%emt 0:00:06]} Kf5 {[%emt 0:00:23]} 78. Kd4 {[%emt 0:00:05]} Kg5 {[%emt 0:01:02]} 79. Ke5 {[%emt 0:00:00]} Kh5 {[%emt 0:01:37]} 80. Kf5 {[%emt 0:00:00]} Kh6 {[%emt 0:00:14]} 81. Kxg4 {[%emt 0:00:00]} Kg6 82. Kf4 {[%emt 0:00:13]} Kf6 {[%emt 0:00:14]} 83. g4 {[%emt 0:00:22]} Kg7 {[%emt 0:00:00]} 84. g5 {[%emt 0:00:00]} Kf7 {[%emt 0:00:30]} 85. Kf5 {[%emt 0:00:45]} Kg7 {[%emt 0:00:00]} 86. g6 Kg8 {[%emt 0:00:00]} 1/2-1/2

[Event "7. Arber-Senioren-Cup 2019"]
[Site "Bodenmais"]
[Date "2019.07.27"]
[Round "1.14"]
[White "Wacker, Manfred"]
[Black "Hamlack, Heinz"]
[Result "0-1"]
[ECO "A44"]
[WhiteElo "1741"]
[BlackElo "1986"]
[Annotator "NA RC"]
[PlyCount "88"]
[EventDate "2019.07.27"]
[EventType "swiss"]
[EventCountry "GER"]
[SourceTitle "playchess.com"]
[Source "ChessBase"]
[SourceQuality "1"]
[TimeControl "5400+30"]

1. d4 {[%emt 0:00:00]} c5 {[%emt 0:00:00]} 2. d5 {[%emt 0:00:00]} e5 {[%emt 0:00:00]} 3. e4 {[%emt 0:00:00]} d6 {[%emt 0:00:00]} 4. c4 {[%emt 0:00:00]} Be7 {[%emt 0:00:00]} 5. Bd3 {[%emt 0:00:00]} Bg5 {[%emt 0:00:00]} 6. Nf3 {[%emt 0:00:00]} Bxc1 {[%emt 0:00:00]} 7. Qxc1 {[%emt 0:00:00]} Ne7 {[%emt 0:00:00]} 8. Qg5 {[%emt 0:00:00]} Ng6 {[%emt 0:00:00]} 9. Qxd8+ {[%emt 0:00:00]} Kxd8 {[%emt 0:00:00]} 10. g3 {[%emt 0:00:00]} Ke7 {[%emt 0:00:00]} 11. Nbd2 {[%emt 0:00:00]} a6 {[%emt 0:00:00]} 12. a4 {[%emt 0:00:00]} a5 {[%emt 0:00:00]} 13. O-O-O {[%emt 0:00:00]} Na6 {[%emt 0:00:00]} 14. Rde1 {[%emt 0:00:00]} Nb4 {[%emt 0:00:00]} 15. Bb1 {[%emt 0:00:00]} Bd7 {[%emt 0:00:00]} 16. b3 {[%emt 0:00:00]} Raf8 {[%emt 0:00:00]} 17. h4 {[%emt 0:02:03]} Kd8 {[%emt 0:00:00]} 18. Re3 {[%emt 0:03:10]} Ne7 {[%emt 0:00:00]} 19. Rh2 {[%emt 0:10:33]} h6 {[%emt 0:00:00]} 20. Ne1 {[%emt 0:02:01]} f5 {[%emt 0:00:00]} 21. exf5 {[%emt 0:03:42]} Nxf5 {[%emt 0:00:00]} 22. Bxf5 {[%emt 0:00:35]} Bxf5 {[%emt 0:00:00]} 23. Ne4 {[%emt 0:01:21]} Kd7 {[%emt 0:00:00]} 24. Kd2 {[%emt 0:01:48]} Rf7 {[%emt 0:00:00]} 25. Nd3 {[%emt 0:03:34]} Nxd3 {[%emt 0:00:00]} 26. Kxd3 {[%emt 0:03:20]} Rhf8 {[%emt 0:00:00]} 27. Ke2 Bg4+ {[%emt 0:00:00]} 28. Kd2 {[%emt 0:11:41]} Rf3 {[%emt 0:00:00]} 29. Rc3 {[%emt 0:06:15]} Ke7 {[%emt 0:00:00]} 30. Ke1 {[%emt 0:04:02]} Rxc3 {[%emt 0:00:00]} 31. Nxc3 {[%emt 0:00:22]} Rf3 {[%emt 0:00:00]} 32. Kd2 {[%emt 0:00:28]} Bf5 {[%emt 0:00:00]} 33. g4 {[%emt 0:03:17]} Rd3+ {[%emt 0:00:00]} 34. Ke2 {[%emt 0:00:55]} Bg6 {[%emt 0:00:00]} 35. h5 {[%emt 0:01:18]} Rxc3 {[%emt 0:00:00]} 36. hxg6 {[%emt 0:00:26]} Rxb3 {[%emt 0:00:00]} 37. Rh5 {[%emt 0:00:30]} Kf6 {[%emt 0:00:00]} 38. f4 {[%emt 0:02:42]} exf4 {[%emt 0:00:56]} 39. Rf5+ {[%emt 0:00:55]} Kxg6 {[%emt 0:00:07]} 40. Rxf4 {[%emt 0:00:23]} h5 {[%emt 0:06:30]} 41. gxh5+ {[%emt 0:02:10]} Kxh5 {[%emt 0:00:13]} 42. Rf7 {[%emt 0:01:42]} g5 {[%emt 0:01:00]} 43. Rf3 {[%emt 0:00:31]} Rxf3 {[%emt 0:01:24]} 44. Kxf3 {[%emt 0:00:09]} Kh4 {[%emt 0:00:02]} 0-1